bitfinex/quotes_ETHUSD_20250804
["timestamp","ask_amount","ask_price","bid_price","bid_amount"]
[1754339451957,1e-08,3692.0,3691.9,2.70863241]
[1754339452461,0.89520001,3692.0,3691.9,2.70863241]
[1754339452755,0.89520001,3692.0,3691.9,6.85363241]
[1754339452932,1.35970001,3692.0,3691.9,6.85363241]
[1754339453135,1.35970001,3692.0,3691.9,4.145]
[1754339453345,1.35970001,3692.0,3691.9,6.85363241]
[1754339453729,1.35970001,3692.0,3691.5,0.1352]
[1754339453730,1.35970001,3692.0,3691.8,2.70867922]
[1754339454063,1.35970001,3692.0,3691.5,2.84411523]
[1754339454064,0.14949001,3692.0,3691.9,5.49903241]
[1754339454256,1e-08,3692.0,3691.9,5.49903241]
[1754339454629,1.35970001,3692.0,3691.9,2.70863241]
[1754339454824,1.35970001,3692.0,3691.9,6.85363241]
[1754339455228,1e-08,3692.0,3691.9,6.85363241]
[1754339455560,1.35970001,3692.0,3691.9,4.145]
[1754339455767,1.35970001,3692.0,3691.9,6.85363241]
[1754339456427,1e-08,3692.0,3691.9,6.85363241]
[1754339456636,1e-08,3692.0,3691.9,7.82339338]
[1754339456966,1e-08,3692.0,3691.9,6.85363241]
[1754339457673,1e-08,3692.0,3691.9,23.1264847]
[1754339457875,1e-08,3692.0,3691.9,2.70863241]
[1754339458071,1e-08,3692.0,3691.9,6.88071873]
[1754339458268,1e-08,3692.0,3691.9,6.98883241]
[1754339458565,1e-08,3692.0,3691.9,11.33849338]
[1754339459635,1e-08,3692.0,3691.9,6.81359338]
[1754339460281,1e-08,3692.0,3691.9,10.95859338]
[1754339460438,1e-08,3692.0,3691.9,11.47569338]
[1754339460973,1e-08,3692.0,3691.9,12.02569338]
[1754339461469,1e-08,3692.4,3692.3,5.70833897]
[1754339461786,2.70709592,3694.0,3692.3,5.70833897]
[1754339461787,2.853,3695.0,3692.4,3.0]
[1754339462086,2.853,3695.0,3693.4,2.70748296]
[1754339462087,0.1352,3693.5,3693.4,2.70748296]
[1754339462381,0.1352,3693.5,3692.9,0.1352]
[1754339462541,1.3597,3693.4,3693.1,2.70775229]
[1754339462870,0.1352,3693.5,3693.4,2.70753235]
[1754339463075,0.1352,3693.5,3693.3,2.70760408]
[1754339463285,0.1352,3693.5,3693.4,6.85153235]
[1754339463858,1.4949,3693.5,3693.4,6.85153235]
[1754339464693,1.64439,3693.5,3693.4,4.144]
[1754339465279,1.64439,3693.5,3693.4,5.49733235]
[1754339466395,1.64439,3693.5,3693.4,4.144]
[1754339466583,2.70784847,3693.0,3691.3,9.21105767]
[1754339466785,0.1352,3692.3,3692.1,2.70845641]
[1754339466990,0.1352,3692.3,3692.2,6.85241232]
[1754339467561,1.4949,3692.3,3692.2,6.85241232]
[1754339468080,1.4949,3692.3,3692.2,4.144]
[1754339468287,1.4949,3692.3,3692.2,6.85241232]
[1754339469364,1.4949,3692.3,3692.2,4.144]
[1754339469567,0.1352,3692.3,3692.2,4.144]
[1754339469899,1.4949,3692.3,3692.2,4.144]
[1754339471310,1.4949,3692.3,3692.2,6.85241232]
[1754339471515,1.4949,3692.3,3691.7,0.1352]
[1754339471699,2.70859666,3692.0,3691.5,0.1352]
[1754339471901,1.37970483,3691.9,3691.5,4.144]
[1754339472209,1.3597,3691.8,3691.5,4.144]
[1754339472383,0.55,3692.6,3691.5,4.144]
[1754339472384,1.3597,3691.7,3691.5,4.144]
[1754339472706,1.3597,3691.6,3691.5,6.85286494]
[1754339472910,1.3597,3691.6,3691.1,0.1352]
[1754339473075,1.3597,3691.5,3691.2,4.144]
[1754339473277,0.5997,3691.4,3691.2,6.85312499]
[1754339473614,1.3597,3691.3,3691.2,6.85312499]
[1754339473773,3.0,3692.4,3691.5,2.70887495]
[1754339473974,1.0304,3691.8,3691.6,4.144]
[1754339474204,0.4645,3691.7,3691.6,4.144]
[1754339474408,0.8952,3692.1,3691.7,2.70877915]
[1754339474611,0.13597,3692.0,3691.9,2.70858862]
[1754339474913,1.3597,3692.0,3691.9,6.85258862]
[1754339478609,1.3861,3692.0,3691.9,4.144]
[1754339479504,1.3861,3692.0,3691.8,4.144]
[1754339479707,1.3861,3691.9,3691.8,4.144]
[1754339480475,1.3861,3691.9,3691.8,6.85270578]
[1754339480676,1.3861,3691.9,3691.8,4.144]
[1754339481595,1.3861,3691.9,3691.2,2.70913184]
[1754339481879,1.3861,3691.8,3691.6,2.70885137]
[1754339482079,0.1352,3691.8,3691.7,4.145]
[1754339482819,1.5213,3691.8,3691.7,4.145]
[1754339483197,1.5213,3691.8,3691.5,2.70892367]
[1754339483437,0.1352,3691.8,3691.6,4.145]
[1754339483644,1.3861,3691.7,3691.6,4.145]
[1754339484137,1.3861,3691.7,3691.6,6.85385253]
[1754339487027,1.3861,3691.7,3691.6,4.145]
[1754339487215,1.3861,3691.7,3691.6,6.85385253]
[1754339487625,1.3861,3691.7,3691.4,2.70894273]
[1754339487832,1.3861,3691.6,3691.4,2.70894273]
[1754339488046,0.4666,3691.6,3691.5,6.85392591]
[1754339488821,1.3861,3691.6,3691.5,2.70892591]
[1754339489120,1.3861,3691.6,3691.5,6.85392591]
[1754339489331,1.3861,3691.6,3691.5,2.70892591]
[1754339489535,1.3861,3691.6,3691.5,6.85392591]
[1754339490552,1.3861,3691.6,3691.5,2.70892591]
[1754339490699,1.3861,3691.6,3691.5,6.85392591]
[1754339491027,1.3861,3691.6,3691.5,2.70892591]
[1754339491233,1.3861,3691.6,3691.2,2.70909983]
[1754339491534,1.5213,3691.5,3691.3,4.145]
[1754339491703,1.3861,3691.4,3691.1,0.002]
[1754339491905,1.3861,3691.4,3691.2,4.145]
[1754339492104,1.3861,3691.3,3691.2,4.145]
[1754339492302,1.3861,3691.3,3691.1,0.002]
[1754339492631,1.5213,3691.2,3691.1,0.002]
[1754339492958,4.67349208,3691.2,3691.1,0.002]
[1754339493124,4.65348725,3691.2,3691.1,0.002]
[1754339493326,1.94434118,3691.2,3691.1,0.002]
[1754339493521,1.5213,3691.2,3691.1,0.002]
[1754339494229,0.1352,3691.2,3691.1,2.71121947]
[1754339494434,0.9195,3691.7,3691.2,2.7090994]
[1754339494645,0.1352,3691.5,3691.3,6.85404676]
[1754339494851,0.1352,3691.5,3691.4,2.70899929]
[1754339495458,0.4666,3692.2,3691.7,2.70877915]
[1754339495759,1.73067352,3692.1,3691.8,6.85369129]
[1754339495966,0.9195,3692.0,3691.9,2.70858204]
[1754339496113,0.9195,3692.4,3691.8,4.145]
[1754339496319,0.1352,3692.2,3691.8,2.70866855]
[1754339496542,0.1352,3692.0,3691.9,4.145]
[1754339496930,1.5213,3692.0,3691.9,4.145]
[1754339497143,0.1352,3692.0,3691.9,6.85363241]
[1754339497861,0.1352,3692.2,3691.9,5.13781497]
[1754339498068,0.1352,3692.2,3692.1,2.70848568]
[1754339498218,0.1352,3692.2,3692.1,6.85348568]
[1754339499539,0.4666,3692.8,3692.4,2.70825627]
[1754339499719,1.3861,3692.8,3692.5,4.145]
[1754339500053,1.3861,3692.7,3692.5,4.145]
[1754339500250,2.70779737,3693.1,3692.5,4.145]
[1754339500450,1.3861,3692.6,3692.5,6.85319228]
[1754339500748,0.9195,3692.6,3692.5,6.85319228]
[1754339501156,0.9195,3692.6,3692.3,2.70832315]
[1754339501349,0.1352,3692.5,3692.4,4.144]
[1754339501548,1.5213,3692.5,3692.4,6.85226562]
[1754339501761,1.5213,3692.5,3692.4,4.144]
[1754339503564,1.5213,3692.5,3691.9,2.84576347]
[1754339503878,1.5213,3692.5,3692.1,2.7084304]
[1754339504173,1.3861,3692.4,3692.2,4.144]
[1754339504561,1.3861,3692.4,3692.2,6.85239881]
[1754339505080,1.3861,3692.3,3691.9,0.002]
[1754339505227,0.1352,3692.2,3692.0,4.144]
[1754339505422,1.5213,3692.2,3692.0,4.144]
[1754339505621,0.1352,3692.2,3692.0,4.144]
[1754339505840,1.3861,3692.1,3692.0,4.144]
[1754339508769,1.3861,3692.1,3691.9,2.71061063]
[1754339508943,0.9195,3692.1,3692.0,4.144]
[1754339509129,1.362,3692.9,3692.0,6.85255365]
[1754339509330,2.70812364,3692.6,3692.0,6.85255365]
[1754339509875,0.9128,3692.5,3692.0,6.85255365]
[1754339510068,0.9128,3692.5,3692.1,2.70848451]
[1754339510368,1.362,3692.4,3692.2,4.144]
[1754339510664,0.9128,3692.3,3692.2,4.144]
[1754339510845,0.1352,3692.2,3691.9,0.002]
[1754339511045,1.362,3692.2,3692.0,4.144]
[1754339511352,0.4492,3692.2,3692.0,6.85255904]
[1754339511564,3.15741196,3692.5,3692.0,4.144]
[1754339511743,0.4492,3692.2,3692.1,4.144]
[1754339512252,0.1352,3692.1,3691.9,0.002]
[1754339512478,0.1352,3692.1,3692.0,4.144]
[1754339512683,0.5844,3692.1,3692.0,4.144]
[1754339513193,0.5844,3692.1,3691.9,0.002]
[1754339513194,1.4972,3692.1,3691.9,0.002]
[1754339513396,6.87748387,3692.0,3691.9,0.002]
[1754339513582,2.70914607,3691.2,3691.1,0.002]
[1754339514097,4.07114607,3691.2,3691.1,0.002]
[1754339514295,1.362,3691.2,3691.1,0.002]
[1754339515288,4.07114607,3691.2,3691.1,0.002]
[1754339516202,4.47826068,3691.2,3691.1,0.002]
[1754339516374,4.49826551,3691.2,3691.1,0.002]
[1754339518168,1.78911944,3691.2,3691.1,0.002]
[1754339518483,4.49826551,3691.2,3691.1,0.002]
[1754339518799,1.78911944,3691.2,3691.1,0.002]
[1754339518981,1.76911461,3691.2,3691.1,0.002]
[1754339519183,0.9128,3691.7,3691.1,0.002]
[1754339519383,2.70879078,3691.7,3691.1,2.71119812]
[1754339519575,3.62167207,3691.6,3691.1,0.002]
[1754339519768,3.62167207,3691.6,3691.1,2.71117163]
[1754339519769,1.362,3691.6,3691.1,2.71117163]
[1754339519983,2.70877001,3691.8,3691.2,2.70910089]
[1754339519984,2.70871235,3691.8,3691.2,2.70910089]
[1754339520185,0.1352,3691.5,3691.4,2.70894835]
[1754339521910,1.4972,3691.5,3691.1,0.002]
[1754339522123,4.07093924,3691.5,3691.1,0.002]
[1754339522337,1.362,3691.4,3691.1,0.002]
[1754339522479,0.9128,3691.4,3691.1,2.71117665]
[1754339523091,0.9128,3691.4,3691.2,2.70913726]
[1754339523301,0.9128,3691.4,3691.1,0.002]
[1754339523607,1.362,3691.4,3691.1,0.002]
[1754339523797,1.362,3691.3,3691.1,0.002]
[1754339524192,2.70887826,3691.6,3691.1,0.002]
[1754339524389,1.362,3691.2,3691.1,0.002]
[1754339526720,1.362,3691.2,3691.1,2.71121947]
[1754339527507,1.362,3691.2,3691.1,0.002]
[1754339528312,1.362,3691.2,3691.1,2.71121947]
[1754339529036,1.362,3691.2,3691.1,0.002]
[1754339531023,0.54175882,3691.6,3691.1,0.002]
[1754339531224,0.9128,3691.8,3691.5,2.7089252]
[1754339531411,1.7690553,3691.8,3691.5,2.70886079]
[1754339531606,0.1352,3691.5,3691.4,2.70899929]
[1754339532034,1.362,3692.1,3691.9,2.70859725]
[1754339532366,0.54164217,3693.0,3691.5,2.70892591]
[1754339532367,0.1352,3691.9,3691.5,2.70892591]
[1754339532564,0.1352,3691.9,3691.8,2.70870578]
[1754339532972,0.1352,3691.9,3691.2,0.1352]
[1754339533274,0.1352,3691.9,3690.9,4.146]
[1754339533275,0.1352,3691.6,3690.9,4.146]
[1754339533475,0.14972,3691.6,3691.1,2.71119676]
[1754339533822,1.362,3691.5,3691.1,2.71119676]
[1754339534051,1.362,3691.4,3691.1,2.71119676]
[1754339534574,0.9128,3691.7,3691.1,0.002]
[1754339534920,0.1352,3691.5,3691.4,2.70894396]
[1754339535225,0.1352,3691.5,3691.4,7.53414672]
[1754339535425,0.1352,3691.5,3691.4,7.85414672]
[1754339535645,0.1352,3691.5,3691.4,7.39494672]
[1754339535843,0.9128,3692.0,3691.8,2.70868078]
[1754339536045,0.1352,3691.8,3691.6,2.70885253]
[1754339536261,0.1352,3691.8,3691.7,2.70877915]
[1754339537336,0.1352,3691.8,3691.7,3.66494232]
[1754339537537,0.8758,3692.7,3691.7,1.41536317]
[1754339537742,0.8758,3692.7,3692.5,2.70816964]
[1754339538137,1.3161,3692.6,3692.5,2.70816964]
[1754339538457,0.1352,3692.5,3692.4,2.7082411]
[1754339538963,1.4513,3692.5,3692.4,2.7082411]
[1754339539547,1.4513,3692.5,3692.2,2.70841232]
[1754339539865,0.1352,3692.2,3692.1,2.70842937]
[1754339540030,1.4513,3692.2,3692.0,6.85154936]
[1754339540230,0.8758,3692.1,3692.0,6.85154936]
[1754339540445,0.1352,3692.2,3692.1,2.70848568]
[1754339540644,0.1352,3692.2,3692.0,6.85154471]
[1754339540844,0.8758,3692.1,3692.0,6.85154471]
[1754339541377,2.70875023,3691.8,3691.5,0.1352]
[1754339541535,1.3161,3691.7,3691.5,0.1352]
[1754339541960,1.3161,3691.6,3691.1,6.85416042]
[1754339542158,1.3161,3691.5,3691.2,2.70913379]
[1754339542359,1.3161,3691.5,3691.1,4.145]
[1754339542360,1.3161,3691.5,3691.3,2.7090575]
[1754339542604,0.8758,3691.8,3691.4,2.70895]
[1754339542829,1.3161,3691.7,3691.2,4.143]
[1754339542978,2.85489958,3691.8,3691.1,2.71120974]
[1754339543183,1.3161,3691.6,3691.2,2.70914462]
[1754339543722,1.3161,3691.5,3691.2,2.70914462]
[1754339543920,0.4403,3691.5,3691.2,2.70914462]
[1754339544208,0.8758,3691.4,3691.1,4.145]
[1754339544423,0.8758,3691.7,3691.3,2.70907268]
[1754339544584,0.8758,3691.6,3691.2,2.70914607]
[1754339544991,0.8758,3691.6,3691.3,2.70907268]
[1754339545883,0.8758,3691.5,3691.2,6.85214327]
[1754339546096,0.4403,3691.5,3691.3,2.70907248]
[1754339546305,0.8758,3691.4,3691.3,2.70907248]
[1754339546799,0.8758,3691.7,3691.6,2.70885253]
[1754339546988,1.3161,3691.7,3691.2,4.143]
[1754339547325,1.3161,3691.6,3691.5,2.70891544]
[1754339548026,0.8758,3691.6,3691.4,2.70898733]
[1754339548224,0.8758,3691.5,3691.3,2.70904719]
[1754339548424,0.8758,3691.5,3691.4,2.70899929]
[1754339548633,0.8758,3691.4,3691.3,2.70905434]
[1754339550527,0.4403,3691.5,3691.4,2.70899929]
[1754339550734,0.8758,3691.6,3691.5,2.70892591]
[1754339551828,0.8758,3691.6,3691.4,2.70899001]
[1754339552125,0.1352,3691.5,3691.4,2.70899001]
[1754339552331,1.011,3691.5,3691.4,2.70899001]
[1754339552643,0.1352,3691.5,3691.4,2.70899001]
[1754339552933,1.4513,3691.5,3691.4,2.70899929]
[1754339554431,1.011,3691.5,3691.4,2.70899929]
[1754339555205,0.1352,3691.5,3691.4,2.70899929]
[1754339555395,0.1352,3691.5,3691.4,3.96691313]
[1754339555595,0.1352,3691.5,3691.4,4.10611313]
[1754339555919,0.1352,3691.9,3691.7,2.70872103]
[1754339556227,0.1352,3691.9,3691.8,2.70870578]
[1754339558719,0.1352,3691.9,3691.8,3.66475536]
[1754339558934,0.1362,3692.3,3692.2,2.70841232]
[1754339559097,0.001,3692.3,3692.2,2.70841232]
[1754339560192,0.001,3692.3,3692.2,6.85041232]
[1754339561438,0.001,3692.3,3692.2,6.98961232]
[1754339561664,0.1362,3693.1,3693.0,2.70782561]
[1754339561803,0.001,3693.1,3693.0,9.84982561]
[1754339561998,0.001,3693.1,3693.0,10.29062561]
[1754339562445,0.8758,3694.3,3693.7,2.70727461]
[1754339562635,0.8758,3694.3,3694.2,2.70694602]
[1754339563036,0.1352,3694.2,3693.8,4.142]
[1754339563299,0.8758,3695.2,3693.9,2.84636586]
[1754339563525,0.1352,3694.5,3694.4,2.70679948]
[1754339563736,0.1352,3695.0,3694.9,2.70643319]
[1754339563944,0.1352,3695.0,3694.9,6.84843319]
[1754339564340,0.8758,3695.0,3694.9,7.04932006]
[1754339564846,0.5755,3695.3,3694.9,7.04932006]
[1754339564847,0.5755,3695.3,3695.0,2.70635994]
[1754339565007,0.98317362,3695.1,3695.0,2.70635994]
[1754339565404,0.10737362,3695.1,3695.0,3.69545139]
[1754339566042,0.98317362,3695.1,3695.0,6.84935994]
[1754339566431,0.10737362,3695.1,3695.0,6.84935994]
[1754339566630,0.10737362,3695.1,3695.0,2.70635994]
[1754339566833,0.10737362,3695.1,3695.0,6.85335994]
[1754339568053,0.10837362,3695.1,3695.0,6.85335994]
[1754339568544,0.10837362,3695.1,3695.0,6.85235994]
[1754339569213,0.10837362,3695.1,3695.0,6.85135994]
[1754339569432,0.10837362,3695.1,3695.0,4.144]
[1754339569635,0.10837362,3695.1,3695.0,7.15195994]
[1754339569841,0.10837362,3695.1,3695.0,6.85035994]
[1754339571914,0.10837362,3695.1,3694.9,0.20188687]
[1754339572116,1.3107,3695.0,3694.8,4.143]
[1754339572427,1.3107,3694.9,3694.8,4.143]
[1754339573022,0.10837362,3695.1,3694.9,2.70643319]
[1754339573239,0.10837362,3695.1,3695.0,6.85035994]
[1754339574130,0.10837362,3695.1,3695.0,9.85035994]
[1754339574426,0.10837362,3695.1,3695.0,10.12195994]
[1754339575043,0.10837362,3695.1,3695.0,9.85035994]
[1754339575233,0.10837362,3695.1,3695.0,10.12195994]
[1754339575529,0.10837362,3695.1,3695.0,11.50766366]
[1754339575936,0.10837362,3695.1,3695.0,11.23606366]
[1754339576952,0.10837362,3695.1,3695.0,11.50766366]
[1754339577134,0.10837362,3695.1,3695.0,11.23606366]
[1754339578123,0.001,3695.5,3695.0,11.50766366]
[1754339578337,0.001,3695.5,3695.4,2.706067]
[1754339578568,0.001,3695.5,3695.4,6.849067]
[1754339579137,1.3117,3695.5,3695.4,6.849067]
[1754339579830,0.8693,3695.5,3695.4,6.849067]
[1754339580026,0.001,3695.5,3695.4,2.706067]
[1754339580229,1.3117,3695.5,3694.9,0.20450077]
[1754339580470,0.4424,3695.4,3695.0,4.146]
[1754339580770,2.70619165,3695.3,3694.6,2.70661465]
[1754339580972,1.3107,3695.2,3694.1,3.0]
[1754339581145,1.3107,3695.2,3693.6,2.70738574]
[1754339581146,1.3107,3695.2,3694.2,4.17306946]
[1754339581462,0.8683,3695.1,3694.9,2.70636925]
[1754339581782,0.4424,3695.0,3694.9,2.70643319]
[1754339582179,1.3107,3695.0,3694.9,2.70643319]
[1754339582483,0.001,3695.5,3695.4,2.706067]
[1754339583065,0.1352,3695.4,3694.7,0.1352]
[1754339583363,1.3107,3695.3,3694.8,2.70643672]
[1754339583563,1.3107,3695.2,3694.9,2.70642179]
[1754339583773,1.3107,3695.1,3694.4,2.70674954]
[1754339583974,0.1352,3694.8,3694.6,2.70663286]
[1754339584177,0.1352,3694.6,3694.4,2.70674954]
[1754339584393,0.1352,3694.6,3694.3,2.70686005]
[1754339584394,1.3107,3694.5,3694.3,2.70686005]
[1754339584592,0.1352,3694.6,3694.4,6.85479948]
[1754339584791,0.1352,3694.6,3694.1,2.70696104]
[1754339585074,0.1352,3694.6,3694.4,2.70679311]
[1754339585376,1.3107,3694.5,3694.4,2.70679311]
[1754339585878,0.1352,3694.6,3694.5,2.70672621]
[1754339586251,0.8683,3694.8,3694.7,2.70657969]
[1754339586875,1.3107,3694.8,3694.7,2.70657969]
[1754339588200,0.1352,3694.9,3694.7,4.147]
[1754339588377,0.1352,3694.9,3694.0,0.19922001]
[1754339588557,0.1352,3694.6,3694.5,2.70672134]
[1754339588888,1.4459,3694.6,3694.5,2.70672134]
[1754339589039,0.1352,3694.6,3694.5,2.70672134]
[1754339589451,1.4459,3694.6,3694.5,2.70672134]
[1754339590275,1.4459,3694.6,3694.5,4.146]
[1754339590487,1.4459,3694.6,3694.2,4.146]
[1754339590488,1.72593544,3694.6,3694.2,4.146]
[1754339590703,1.33070483,3694.5,3693.4,2.70753115]
[1754339590999,2.70691823,3694.3,3693.6,2.70732782]
[1754339591175,1.3107,3694.2,3693.6,2.70732782]
[1754339591385,0.8683,3694.2,3693.5,4.147]
[1754339591603,0.001,3695.1,3693.6,3.71270663]
[1754339591803,0.8683,3694.6,3693.7,2.70731245]
[1754339591970,0.8683,3694.6,3694.5,2.70672621]
[1754339592379,0.4424,3694.8,3694.6,2.70664747]
[1754339592596,0.001,3695.1,3694.6,2.70664747]
[1754339592803,0.001,3695.1,3694.7,2.70657394]
[1754339592955,0.001,3695.1,3694.8,2.70648431]
[1754339593280,1.3107,3695.0,3694.8,2.70648431]
[1754339593454,0.001,3695.1,3694.8,2.70648431]
[1754339593658,1.3107,3694.9,3694.8,2.70648431]
[1754339593960,1.3107,3694.9,3694.2,2.70694602]
[1754339594164,1.33070483,3694.8,3693.6,0.68563278]
[1754339594482,1.33070483,3694.8,3694.1,2.70700715]
[1754339594483,1.3107,3694.7,3694.1,2.70700715]
[1754339594682,1.3107,3694.6,3694.1,2.70700715]
[1754339594897,1.3107,3694.5,3693.3,0.002]
[1754339595051,1.3107,3694.4,3694.0,2.70708154]
[1754339595252,0.001,3695.1,3693.3,0.002]
[1754339595253,1.3107,3694.3,3693.3,0.002]
[1754339595452,0.001,3695.1,3693.3,0.002]
[1754339595453,1.3107,3694.2,3693.4,4.147]
[1754339595708,0.551,3695.1,3693.4,4.147]
[1754339595709,1.3107,3694.1,3693.4,0.20233323]
[1754339595850,2.70753235,3693.4,3692.9,0.002]
[1754339596052,2.70723915,3693.8,3692.9,0.002]
[1754339596053,3.55,3693.6,3692.9,0.002]
[1754339596370,4.01835355,3693.3,3692.9,0.002]
[1754339596577,1.3107,3693.3,3692.9,0.002]
[1754339596865,7.153,3694.0,3692.9,0.002]
[1754339596866,3.9869863,3693.2,3692.9,0.002]
[1754339597087,1.2793,3693.2,3692.9,0.002]
[1754339597397,0.8448,3693.1,3693.0,2.70782254]
[1754339597787,1.2793,3693.5,3693.1,2.70775229]
[1754339598176,1.2793,3693.4,3693.0,2.70775566]
[1754339598700,1.2793,3693.3,3693.0,2.70775566]
[1754339598876,0.8448,3693.3,3693.1,2.70768942]
[1754339599077,0.8448,3693.3,3693.2,2.70767897]
[1754339599796,0.8448,3693.3,3693.1,2.7077312]
[1754339600296,0.8448,3693.3,3692.9,2.70988769]
[1754339600297,0.8448,3693.3,3693.2,2.70767897]
[1754339600659,0.1352,3693.4,3693.3,2.70760566]
[1754339601091,0.1352,3693.4,3693.3,3.24913412]
[1754339601887,0.1352,3693.4,3693.3,2.70760566]
[1754339602594,1.2793,3694.3,3694.0,2.70706704]
[1754339603001,0.8448,3694.3,3693.3,0.2416]
[1754339603174,0.1352,3694.2,3694.1,2.7070193]
[1754339603868,0.8448,3694.8,3694.1,2.7070193]
[1754339603869,1.2793,3695.0,3694.7,2.70653435]
[1754339604103,6.86700992,3695.5,3694.8,2.70650174]
[1754339604397,0.4345,3695.5,3695.0,2.70635994]
[1754339604906,0.8458,3695.1,3695.0,2.70635994]
[1754339605256,0.001,3695.1,3695.0,2.70635994]
[1754339606292,0.8458,3695.1,3695.0,2.70635994]
[1754339606498,0.001,3695.1,3695.0,2.70635994]
[1754339606688,0.1362,3695.1,3695.0,2.70635994]
[1754339606996,0.001,3695.1,3695.0,2.70635994]
[1754339607798,0.8458,3695.1,3695.0,2.70635994]
[1754339608662,0.001,3695.1,3695.0,2.70635994]
[1754339609297,0.001,3695.1,3695.0,3.66394611]
[1754339609663,0.001,3695.1,3695.0,4.04074611]
[1754339609864,0.001,3695.1,3695.0,3.79914611]
[1754339610699,0.001,3695.1,3695.0,7.96214611]
[1754339610913,0.001,3695.1,3695.0,8.20974611]
[1754339611111,1e-08,3695.1,3695.0,11.34494611]
[1754339611464,1e-08,3695.1,3695.0,11.89494611]
[1754339612184,1e-08,3695.1,3695.0,11.75974611]
[1754339612400,1e-08,3695.1,3695.0,11.90094611]
[1754339613080,0.001,3696.3,3695.0,11.90094611]
[1754339613081,1e-08,3696.3,3696.2,2.7054813]
[1754339613311,1e-08,3696.3,3696.2,10.14602943]
[1754339613508,1e-08,3696.3,3696.2,10.52882943]
[1754339613679,1e-08,3696.3,3696.2,10.66402943]
[1754339614290,1.627,3700.3,3696.2,10.66402943]
[1754339614291,0.4345,3698.2,3698.0,2.70416441]
[1754339614498,2.81085445,3699.0,3698.1,4.17]
[1754339614499,0.8448,3698.8,3698.1,4.17]
[1754339614691,0.8448,3698.8,3697.5,0.2416]
[1754339614692,0.8448,3698.8,3698.5,2.70378779]
[1754339615000,0.4345,3698.9,3697.9,2.70418754]
[1754339615001,0.8528,3698.7,3698.6,6.87872573]
[1754339615186,0.008,3698.7,3698.6,2.70372573]
[1754339615386,0.008,3698.7,3697.4,21.98759474]
[1754339615387,1.2873,3698.7,3695.8,0.2416]
[1754339615607,2.70461308,3697.4,3696.4,5.70527766]
[1754339615822,1.2793,3697.3,3695.2,2.70621072]
[1754339615995,1.2793,3697.2,3696.4,2.70533492]
[1754339616194,1.2793,3697.2,3696.5,6.91424488]
[1754339616516,1.2793,3697.1,3696.6,4.209]
[1754339616684,2.70509983,3696.8,3696.0,2.70556389]
[1754339616891,2.70518855,3696.6,3695.0,0.95758617]
[1754339617123,2.70584333,3695.8,3695.0,2.70629034]
[1754339617295,1.2793,3695.7,3695.1,6.94833353]
[1754339617532,1.2793,3695.7,3693.7,2.70726746]
[1754339617533,0.4345,3695.7,3694.9,2.70637459]
[1754339617708,3.98528065,3695.6,3694.7,2.70652551]
[1754339617920,0.8448,3695.5,3694.9,2.70643234]
[1754339618226,0.8448,3695.5,3695.0,4.214]
[1754339618530,0.8448,3695.8,3695.2,2.70620965]
[1754339618885,2.70631496,3695.1,3694.1,2.7070193]
[1754339619093,1.2793,3695.0,3694.2,5.40411476]
[1754339619293,1.2793,3695.0,3694.3,2.70681479]
[1754339619525,1.2793,3695.0,3694.4,5.70678666]
[1754339619720,1.2793,3695.0,3694.3,3.20037772]
[1754339619933,2.705643,3696.0,3693.5,0.2416]
[1754339619934,1.2793,3694.9,3693.5,0.2416]
[1754339620137,1.2793,3694.8,3694.0,9.2040749]
[1754339620434,0.8448,3694.7,3694.1,2.7070193]
[1754339620636,0.8448,3694.7,3694.1,6.9200193]
[1754339620802,0.8448,3695.1,3694.2,1.36877139]
[1754339621014,3.55114283,3695.1,3694.2,4.04863045]
[1754339621209,3.55114283,3695.1,3693.8,0.3828]
[1754339621210,1.29930483,3695.0,3692.9,0.002]
[1754339621531,2.70678695,3694.5,3693.7,2.70929456]
[1754339621735,1.2793,3694.4,3693.7,0.002]
[1754339622019,2.70708622,3694.1,3693.7,0.002]
[1754339622225,1.29930483,3694.3,3693.7,0.002]
[1754339622532,0.4345,3694.2,3693.7,0.002]
[1754339622690,1.2793,3694.2,3693.7,0.002]
[1754339622891,0.4345,3694.1,3693.7,0.002]
[1754339623188,0.4345,3694.1,3693.7,2.7092992]
[1754339623189,1.2793,3694.1,3693.7,2.7092992]
[1754339623392,1.2793,3694.0,3693.7,0.002]
[1754339623890,1.2793,3693.9,3693.7,0.002]
[1754339624838,0.8448,3693.8,3693.7,0.002]
[1754339625071,1.2793,3693.8,3693.7,0.002]
[1754339625637,1.2793,3693.8,3693.7,2.70931245]
[1754339625799,1.2793,3693.8,3693.7,0.002]
[1754339626188,3.98653915,3693.8,3693.7,0.002]
[1754339626389,4.67590743,3693.8,3693.7,0.002]
[1754339627319,4.6559026,3693.8,3693.7,0.002]
[1754339627897,1.94866345,3693.8,3693.7,0.002]
[1754339629293,0.7749,3694.1,3693.7,0.002]
[1754339629606,1.2338,3693.8,3693.7,0.002]
[1754339629813,1.2338,3693.8,3693.7,2.70931245]
[1754339630008,0.7749,3694.2,3694.1,2.7069532]
[1754339630506,0.7749,3694.2,3694.0,2.70706627]
[1754339630826,1.2338,3694.1,3694.0,2.70706627]
[1754339632325,0.7749,3694.1,3694.0,2.70706627]
[1754339632531,0.7749,3694.6,3694.5,2.70672621]
[1754339633654,1.2338,3694.6,3694.0,2.70702388]
[1754339633964,1.2338,3694.6,3693.7,0.002]
[1754339633965,0.4589,3694.5,3693.7,0.002]
[1754339634164,0.4589,3694.5,3694.0,2.70707697]
[1754339634488,0.4589,3694.4,3694.0,2.70707697]
[1754339634631,2.70666759,3694.6,3694.0,2.70707697]
[1754339634829,0.7749,3694.8,3693.8,2.70723915]
[1754339635170,0.7749,3694.8,3694.4,2.70675636]
[1754339635337,5.70633688,3695.1,3694.5,2.70671534]
[1754339635532,0.1352,3694.5,3693.8,0.1352]